Cogmind - Beta 17.1 @@@ ROGUE MODE // 2026.09.19 @ 03:47:50 Player: MORONI274 Result: Destroyed by Y-45 Defender with Heavy Assault Rifle Performance ------------- Evolutions (0) 0 Regions Visited (2) 400 Robots Destroyed (14) 70 Value Destroyed (315) 315 Prototype IDs (0) 0 Alien Tech Used (0) 0 Bonus (0) 0 TOTAL SCORE: 785 Bonus ------- None Cogmind --------- Core Integrity 0/250 Matter 251/300 Energy 123/125 System Corruption 0% Temperature Cool (9) Movement Rolling (95) Ox1 Location -10/Mines Parts ------- > --- POWER (1) -------- Light Ion Engine > --- PROPULSION (2) --- Wheel > --- UTILITY (2) ------ Small Storage Unit Core Shielding > --- WEAPON (2) ------- Light Assault Rifle Light Assault Rifle > --- INVENTORY (8) ---- Ion Engine Compact Wheel Improved Hover Unit Improved Hover Unit Structural Scanner Visual Processing Unit Core Shielding Peak State ------------ > --- POWER ------------ Light Ion Engine > --- PROPULSION ------- Improved Hover Unit Improved Hover Unit > --- UTILITY ---------- Small Storage Unit Core Shielding > --- WEAPON ----------- EM Shotgun Light Assault Rifle > --- INVENTORY -------- Ion Engine Wheel Compact Wheel Improved Hover Unit Improved Hover Unit Structural Scanner Visual Processing Unit Core Shielding [Rating: 11] Favorites ----------- Power Light Ion Engine Engine Light Ion Engine Power Core Light Nuclear Core Propulsion Light Treads Treads Light Treads Wheel Wheel Hover Unit Hover Unit Flight Unit Flight Unit Utility Small Storage Unit Device Structural Scanner Storage Small Storage Unit Protection Core Shielding Weapon Light Assault Rifle Energy Gun EM Pulse Gun Ballistic Gun Light Assault Rifle Special Weapon Welding Torch Build | -11 -10 -10 ------- Run | Yrd Mat Min Slots Evolved . | . . . Power . | . . . Propulsion . | . . . Utility . | . . . Weapon . | . . . Parts Attached 28 | 6 18 4 Power 6 | 1 4 1 Engine 5 | 1 3 1 Core 1 | . 1 . Reactor . | . . . Propulsion 9 | 2 6 1 Treads 2 | 2 . . Leg . | . . . Wheel 1 | . . 1 Hover 4 | . 4 . Flight 2 | . 2 . Utility 4 | 1 3 . Device 1 | . 1 . Storage 1 | 1 . . Processor . | . . . Hackware . | . . . Protection 2 | . 2 . Artifact . | . . . Weapon 9 | 2 5 2 Energy Gun 3 | . 3 . Energy Cannon . | . . . Ballistic Gun 5 | 2 1 2 Ballistic Cannon . | . . . Launcher . | . . . Special Weapon 1 | . 1 . Impact Weapon . | . . . Slashing Weapon . | . . . Piercing Weapon . | . . . Special Melee Weapon . | . . . Unidentified Prototypes . | . . . Parts Lost 14 | . 10 4 Power 4 | . 3 1 Propulsion 4 | . 2 2 Utility . | . . . Weapon 6 | . 5 1 Highest Loss Streak 6 | . 6 4 To Critical Strikes . | . . . Average Backups 6 | 3 7 7 Power . | . 1 1 Propulsion 3 | 2 4 3 Utility 1 | . 1 3 Weapon . | . . . Tool/Special . | . . . Unused Backups 11 | . 6 5 Power 2 | . 1 1 Propulsion 8 | . 5 3 Utility 1 | . . 1 Weapon . | . . . Tool/Special . | . . . Average Slot Usage (%) 92 | . 92 88 Engine 10 | . 10 10 Core 1 | . 1 . Treads 7 | . 8 . Hover 15 | . 15 17 Flight 2 | . 2 . Device 1 | . 2 . Storage 14 | . 14 14 Protection 11 | . 11 14 Energy Gun 15 | . 16 7 Ballistic Gun 9 | . 8 18 Peak Build Rating 11 | 6 11 11 Average Rating 7 | 5 7 9 On Entrance 5 | . 6 11 Avg Prop Armor Cover (%) 8 | . 5 11 Naked Turns . | . . . Heaviest Build 16 | 10 16 13 Greatest Support 40 | 40 40 14 Greatest Overweight (x) 1 | 1 1 1 Average Overweight (x) . | . . . Largest Inventory Capacity 8 | 8 8 8 Average Capacity 7 | 7 8 8 Most Carried 8 | 6 8 8 Average Carried 6 | 3 7 7 Final Capacity 8 | 8 8 8 Final Carried 8 | 6 8 7 Class Distribution -------------------- 95% | Mutant 4% | Scavenger-Mutant Dominant Class ---------------- Mutant | -10/Materials Mutant | -10/Mines Resources | -11 -10 -10 ----------- Run | Yrd Mat Min Matter Collected 422 | 209 201 12 Remotely . | . . . Salvage Created 378 | . 274 104 Parts 27 | . 19 8 Haulers Intercepted . | . . . Recyclers Shooed . | . . . Parts Field Recycled . | . . . Retrieved Matter . | . . . Parts Self-Destructed . | . . . Prevented . | . . . Parts Restored . | . . . Kills | -11 -10 -10 ------- Run | Yrd Mat Min Combat Hostiles Destroyed 10 | . 6 4 Guns 8 | . 5 3 AOE 2 | . 1 1 Classes Destroyed 6 | . 5 1 Worker 1 | . 1 . Builder 1 | . 1 . Watcher 2 | . 2 . Swarmer 5 | . 2 3 Grunt 4 | . 4 . Sentry 1 | . . 1 Best Kill Streak 4 | . 2 4 Combat Bots Only 4 | . 2 4 Max Kills in Single Turn 2 | . 2 1 Gunslinging . | . . . Exploded 1 | . 1 1 Melee . | . . . Uniques/NPCs Destroyed . | . . . Combat | -11 -10 -10 -------- Run | Yrd Mat Min Hostile Shots Fired 139 | . 110 29 Missed 37 | . 30 7 Hits 102 | . 80 22 Projectile 102 | . 80 22 Critical Strikes 4 | . 2 2 Actively Blocked 1 | . . 1 Damage Taken 1326 | . 1008 318 Core 254 | . 168 86 Absorbed by Shields . | . . . Redirected to Shielding 47 | . 29 18 Core Remaining (%) 100 | 100 . . Volleys Fired 51 | . 41 10 Largest 2 | . 2 2 Hottest 105 | . 105 65 Shots Fired 86 | . 68 18 Gun 86 | . 68 18 Cannon . | . . . Launcher . | . . . Special . | . . . Kinetic 51 | . 40 11 Thermal 12 | . 12 . Explosive . | . . . Electromagnetic 23 | . 16 7 Robot Hit Streak 8 | . 8 7 Robot Miss Streak 3 | . 3 2 Penetration Max . | . . . Secondary Targets 1 | . 1 . Max Gunslinging Chain 1 | . 1 . Shots Hit Robots 58 | . 46 12 Core Hits 24 | . 17 7 Critical Kills . | . . . Critical Parts Destroyed . | . . . Critical Strikes 1 | . 1 . Corrupt 1 | . 1 . Melee Attacks . | . . . Impact . | . . . Slashing . | . . . Piercing . | . . . Sneak Attacks . | . . . Combat Hostiles . | . . . Follow-up Attacks . | . . . Damage Inflicted 927 | . 752 175 Guns 613 | . 479 134 Cannons . | . . . Explosions 289 | . 248 41 Melee . | . . . Ramming 25 | . 25 . Kinetic 277 | . 229 48 Thermal 257 | . 216 41 Explosive 154 | . 154 . Electromagnetic 214 | . 128 86 Impact . | . . . Slashing . | . . . Piercing . | . . . Highest Corruption . | . . . Average Corruption . | . . . Corruption Purged . | . . . Corruption Blocked . | . . . Overload Shots . | . . . Overflow Damage 90 | . 90 . Projectiles . | . . . Explosions 90 | . 90 . Melee . | . . . Knockbacks . | . . . Impact . | . . . Kinetic . | . . . Secondary . | . . . Self-Inflicted Damage 94 | . 73 21 Shots 3 | . 2 1 Rammed 7 | . 7 . Targets Rammed 7 | . 7 . Kicked . | . . . Crushed . | . . . Highest Temperature 283 | . 283 128 Average Temperature 64 | . 63 65 Received Heat Transfer 471 | . 381 90 Effects 3 | . 3 . Energy Bleed 1 | . 1 . Interference 2 | . 2 . Siege Activations . | . . . Martial Activations . | . . . Shielding Activations . | . . . Robots Disrupted . | . . . Combat Hostiles . | . . . Robots Corrupted . | . . . Combat Hostiles . | . . . Parts Fried . | . . . Impact Corruptions . | . . . Robots Melted . | . . . Combat Hostiles . | . . . Parts Melted . | . . . Heat Transferred 396 | . 396 . Parts Sabotaged . | . . . Parts Stolen . | . . . Parts Stripped . | . . . Power Chain Reactions 2 | . 1 1 Alert | -11 -10 -10 ------- Run | Yrd Mat Min Maximum Alert Level . | . . . Low Security (%) 100 | 100 100 100 Level 1 . | . . . Level 2 . | . . . Level 3 . | . . . Level 4 . | . . . Level 5 . | . . . High Security . | . . . Max Security . | . . . Peak Influence 76 | . 63 76 Initial 3 | . . 3 Average 14 | . 16 29 Influence Increases 308 | . 212 96 Destroy 0b10 Robot/C 200 | . 120 80 Destroy 0b10 Robot/NC 20 | . 20 . Destroy Leader 44 | . 34 10 Disable Machine 30 | . 30 . Destroy Structure 14 | . 8 6 Influence Decreases 282 | . 202 80 Entered New Map 7 | . . 7 Time Decay 195 | . 162 33 Lost Part 80 | . 40 40 Squads Dispatched 1 | . 1 . Investigation . | . . . Extermination . | . . . Reinforcement 1 | . 1 . Assault . | . . . Garrison . | . . . Intercept . | . . . Searches Triggered . | . . . Construction Impeded . | . . . Haulers Reinforced . | . . . Active Scanning Responses . | . . . Cargo Convoy Interrupts . | . . . Stealth | -11 -10 -10 --------- Run | Yrd Mat Min Distress Signals 2 | . 2 . Communications Jammed . | . . . Distress Signals . | . . . Times Spotted 20 | . 15 5 Peak Tracking Total 5 | . 4 5 Tactical Retreats . | . . . Traps | -11 -10 -10 ------- Run | Yrd Mat Min Traps Triggered . | . . . Indirectly . | . . . Trap Hack Attempts . | . . . Triggered . | . . . Disarmed . | . . . Reprogrammed . | . . . Reused . | . . . Traps Extracted . | . . . Installed . | . . . Triggered . | . . . Machines | -11 -10 -10 ---------- Run | Yrd Mat Min Machines Disabled 2 | . 2 . Max in Single Turn 1 | . 1 . Machines Repaired . | . . . Machines Dismantled . | . . . Machines Sabotaged . | . . . Overloaded Fab Kills . | . . . Hacking | -11 -10 -10 --------- Run | Yrd Mat Min Machines Accessed 1 | . 1 . Terminals 1 | . 1 . Fabricators . | . . . Repair Stations . | . . . Recycling Units . | . . . Scanalyzers . | . . . Garrison Access . | . . . Total Hacks 2 | . 2 . Successful 1 | . 1 . Failed 1 | . 1 . Catastrophic . | . . . Database Lockouts . | . . . Manual 2 | . 2 . Terminals 2 | . 2 . Fabricators . | . . . Repair Stations . | . . . Recycling Units . | . . . Scanalyzers . | . . . Garrison Access . | . . . Terminal Hacks 1 | . 1 . Unreport Threat 1 | . 1 . Fabricator Hacks . | . . . Repair Station Hacks . | . . . Recycling Unit Hacks . | . . . Scanalyzer . | . . . Garrison Access Hacks . | . . . Unauthorized Hacks . | . . . Terminals . | . . . Fabricators . | . . . Repair Stations . | . . . Recycling Units . | . . . Scanalyzers . | . . . Garrison Access . | . . . Data Cores Recovered . | . . . Used . | . . . Hacking Detections 1 | . 1 . Full Trace Events . | . . . Feedback Events . | . . . Feedback Blocked . | . . . Robot Schematics Acquired . | . . . Robots Built . | . . . Authchips . | . . . Time . | . . . Total Robot Build Rating . | . . . Part Schematics Acquired . | . . . Parts Built . | . . . Authchips . | . . . Time . | . . . Total Part Build Rating . | . . . Part Studies Acquired . | . . . Parts Repaired . | . . . Time . | . . . Parts Recycled . | . . . Recycled Matter . | . . . Retrieved Matter . | . . . Retrieved Components . | . . . Parts Scanalyzed . | . . . Part Schematics Acquired . | . . . Parts Damaged . | . . . Bothacking | -11 -10 -10 ------------ Run | Yrd Mat Min Used RIF Installer . | . . . Robots Hacked . | . . . Non-combat . | . . . Combat . | . . . Robot Hacks Applied . | . . . Relay Couplers Released . | . . . Fabnet Peak Effective % . | . . . Robots Rewired . | . . . Allies Hacked . | . . . Hacks Repelled . | . . . Allies | -11 -10 -10 -------- Run | Yrd Mat Min Total Allies . | . . . Largest Group . | . . . Highest-Rated Group . | . . . Highest-Rated Ally . | . . . Total Orders . | . . . Ally Attacks . | . . . Total Damage . | . . . Kills . | . . . Allies Corrupted . | . . . Allies Melted . | . . . Intel | -11 -10 -10 ------- Run | Yrd Mat Min Active Infowar (turns) 85 | . 85 . Structural 85 | . 85 . Robot Analysis Total . | . . . Derelict Logs Recovered . | . . . Drone Launches . | . . . Drone Recoveries . | . . . Exploration | -11 -10 -10 ------------- Run | Yrd Mat Min Turns Passed 771 | 138 551 82 Spaces Moved 532 | 80 377 75 Core 6 | 4 2 . Treads 130 | 76 54 . Legs . | . . . Wheels 31 | . . 31 Hover 330 | . 286 44 Flight 35 | . 35 . Fastest Speed 37 | 50 37 56 Average Speed 108 | 155 106 69 Slowest Speed 160 | 160 160 95 Overloaded Moves . | . . . Propulsion Burnouts . | . . . Robots Hopped . | . . . Potential Cave-ins . | . . . Cave-ins Triggered . | . . . Exploration Rate (%) 19 | 4 44 10 Regions Visited 2 Branch Regions 1 Pre-discovered Areas . | . . . Known Exits Taken . | . . . Unknown Exits Taken 2 | 1 1 . Scrap Searched . | . . . Spaces Dug . | . . . Terrain Destroyed 13 | . 7 6 Melee . | . . . Projectile . | . . . AOE 13 | . 7 6 Terrain Rammed . | . . . Walls Destroyed . | . . . Machines Disabled . | . . . Actions | -11 -10 -10 --------- Run | Yrd Mat Min Total 646 | 91 464 91 Wait . | . . . Move 530 | 79 376 75 Hop . | . . . Pick Up 20 | 6 13 1 Fast Attach 15 | 6 8 1 Attach 5 | . 3 2 Detach . | . . . Swap 8 | . 7 1 Drop 10 | . 9 1 Fire 51 | . 41 10 Melee . | . . . Ram 7 | . 7 . Kick . | . . . Crush . | . . . Escape Stasis . | . . . Rewire . | . . . Trap . | . . . Miscellaneous . | . . . Route ------- -11/Scrapyard -10/Materials (discovered 2 exits: [*Min] / [Sub]) -10/Mines History --------- Turn | Location | Event 26 | -11/Scrapyard | Discovered new exit (range 16) 139 | -11/Scrapyard | Entered Materials 291 | -10/Materials | Lost 3 parts (1p2w) 320 | -10/Materials | Discovered new exit (range 14) 328 | -10/Materials | Build established: Mutant 531 | -10/Materials | Discovered new exit (range 8) 573 | -10/Materials | Core integrity fell below 50% 601 | -10/Materials | Lost 6 parts (1p2n3w) 690 | -10/Materials | Entered Mines 742 | -10/Mines | Core integrity fell below 20% 772 | -10/Mines | Destroyed by Y-45 Defender with Heavy Assault Rifle Last Messages --------------- 00651_ Acquired EM Shotgun. 00672_ Connecting with Terminal... 00683_ Terminal unresponsive. LOCATION=UNKNOWN GOAL=ESCAPE 00717_ S-10 Pest destroyed. 00723_ Chain reaction triggered in Lgt. Ion Engine. 00723_ S-10 Pest destroyed. 00726_ Dropped Lgt. Assault Rifle. 00728_ S-10 Pest destroyed. 00730_ Critical hit (Burn: +37). 00733_ Lgt. Ion Engine destroyed. 00735_ EM Shotgun destroyed. 00738_ Imp. Hover Unit destroyed. 00738_ Y-45 Defender destroyed. 00746_ Acquired Lgt. Assault Rifle. 00747_ Acquired 12 matter. 00748_ Imp. Hover Unit destroyed. 00749_ Acquired Lgt. Ion Engine. Map ----- +----------------------------------------------------+ | | | | | | | | | | | | | | | | | | | | | | | | | ?????????????????????????????????? | | ?????????????????????????????????? | | ?????????????????????????????????? | | ?????????????????????????????????? | | ?????????????????????????????????? | | ??????????????????????????#####??? | | ??????????????#####??????## ##?? | | ????????###?### ##?????# #?? | | ???????##[!## ##????? #?? | | ???????#"|! # ##????? #?? | | ???????# $+ ####??# #?? | | ???????# + ##?# #?? | | ???????#"!! # ###%*### ##? | | ???????##!??# ###;=[@ #? | | ????????????# ##?#;%;## #? | | ????????????## ###??#;Y;### ##? | | ?????????????# #????##[##?# ###?? | | ?????????????# #?????# #??# #???? | | ?????????????# ?????# #??# #???? | | ?????????????### ?????# #??# #???? | | ???????????????? #????# #??# #???? | | ???????????????? #????# #??# #???? | | ???????????????? #????# #??# #???? | | ???????????????? #????# #### #???? | | ???????????????? #????# #???? | | ???????????????? #????########???? | | ???????????????? ????????????????? | | ?????????????????????????????????? | | ?????????????????????????????????? | | ?????????????????????????????????? | | ?????????????????????????????????? | | ?????????????????????????????????? | | ?????????????????????????????????? | | ?????????????????????????????????? | | ?????????????????????????????????? | | ?????????????????????????????????? | | ?????????????????????????????????? | | ?????????????????????????????????? | +----------------------------------------------------+ Best States ------------- Heat Dissipation 25 Energy Generation 14 Energy Capacity 250 Matter Stores 300 Matter Capacity 300 Sight Range 16 Terrain Scan Density 10 Core Shielding 20 Evasion (%) 53 Recoil Reduction 2 Item Schematics ----------------- None Robot Schematics ------------------ None Fabricated ------------ Nothing Repaired ---------- Nothing Studied --------- None Alien Tech Used ----------------- None Achievements -------------- None Challenges ------------ None Game ------ Seed SniperSiegeTube Manual? 0 Play Time 00:08:02 Cumulative 20.1 hours Start 2026.09.19 @ 03:40:30 End 2026.09.19 @ 03:47:50 Sessions 1 Manual Loads 0 Difficulty Rogue Special Mode None Game No. 43 Rogue 43 Adventurer 0 Explorer 0 Win Type - Total 0 Types 0/0/0/0/0/0/0/0/0/0 Lore% 12 Gallery% 19 Achievement% 17 Wizard Run 0 Options --------- Layout 1 ASCII 0 Keyboard 0 Movement Arrows Keybinds 0 Fullscreen 2 Font 24/Smallcaps Map View 50x35 Zoom Use 0% Tactical HUD 1 Map Filters NONE Filters NONE Steam 1 RUN: 2a431245-abd1-495d-87d2-ec3ee4bcb253